Cogmind - Beta 13 @@@ ROGUE MODE // 2024.06.08 @ 18:06:31 Player: puppuppit Result: Destroyed self with Grenade Launcher Performance ------------- Evolutions (0) 0 Regions Visited (3) 600 Robots Destroyed (85) 425 Value Destroyed (1275) 1275 Prototype IDs (3) 60 Alien Tech Used (0) 0 Bonus (104) 104 TOTAL SCORE: 2464 Bonus ------- Follower Combat Kills 240 Friendly Fire -136 Cogmind --------- Core Integrity 0/250 Matter 232/300 Energy 85/100 System Corruption 0% Temperature Cool (0) Movement Core (250) Ox4 Location -10/Subcaves Parts ------- > --- POWER (1) -------- (None) > --- PROPULSION (2) --- (None) > --- UTILITY (2) ------ Medium Storage Unit > --- WEAPON (2) ------- Grenade Launcher > --- INVENTORY (10) --- Light Ion Engine Heat Sink Medium Matter Pod (100) Faulty Experimental Sensor Array Makeshift Light Armor Plating Subdweller Shrapnel Launcher Multitool Peak State ------------ > --- POWER ------------ Light Ion Engine > --- PROPULSION ------- Wheel Wheel > --- UTILITY ---------- Medium Storage Unit Makeshift System Restoration Module > --- WEAPON ----------- Light Cannon Light Cannon > --- INVENTORY -------- Subdweller Power Source Wheel Wheel Heat Sink Medium Storage Unit Medium Matter Pod Experimental Sensor Array Hardened Medium Armor Plating Light Cannon Grenade Launcher [Rating: 12] Favorites ----------- Power Light Ion Engine Engine Light Ion Engine Propulsion Wheel Wheel Wheel Utility Medium Storage Unit Device Heat Sink Storage Medium Storage Unit Weapon Light Cannon Energy Gun Medium Laser Ballistic Gun Subdweller Machine Gun Ballistic Cannon Light Cannon Launcher Grenade Launcher Special Weapon Flamer Build | -11 -10 -10 -10 ------- Run | Yrd Mat Min Sub Slots Evolved . | . . . . Power . | . . . . Propulsion . | . . . . Utility . | . . . . Weapon . | . . . . Parts Attached 69 | 8 18 21 22 Power 14 | 1 2 7 4 Engine 14 | 1 2 7 4 Core . | . . . . Reactor . | . . . . Propulsion 21 | 3 4 10 4 Treads . | . . . . Leg . | . . . . Wheel 21 | 3 4 10 4 Hover . | . . . . Flight . | . . . . Utility 14 | 2 5 3 4 Device 9 | 1 4 1 3 Storage 5 | 1 1 2 1 Processor . | . . . . Hackware . | . . . . Protection . | . . . . Artifact . | . . . . Weapon 20 | 2 7 1 10 Energy Gun 2 | 1 1 . . Energy Cannon . | . . . . Ballistic Gun 8 | 1 2 . 5 Ballistic Cannon 4 | . 2 1 1 Launcher 5 | . 2 . 3 Special Weapon 1 | . . . 1 Impact Weapon . | . . . . Slashing Weapon . | . . . . Piercing Weapon . | . . . . Special Melee Weapon . | . . . . Unidentified Prototypes . | . . . . Parts Lost 11 | . 1 2 8 Power 1 | . . 1 . Propulsion 5 | . . 1 4 Utility 1 | . . . 1 Weapon 4 | . 1 . 3 Highest Loss Streak 8 | . 1 2 8 To Critical Strikes . | . . . . Average Slot Usage (%) 94 | . 98 99 88 Engine 11 | . 13 13 8 Wheel 26 | . 28 27 25 Device 13 | . 13 14 12 Storage 14 | . 14 14 14 Energy Gun 2 | . 8 . . Ballistic Gun 6 | . 3 . 14 Ballistic Cannon 15 | . 15 27 7 Naked Turns . | . . . . Heaviest Build 22 | 14 20 22 22 Greatest Support 30 | 26 20 20 30 Greatest Overweight (x) 3 | . . 1 3 Average Overweight (x) . | . . . . Largest Inventory Capacity 10 | 8 10 10 10 Average Capacity 9 | 7 9 10 10 Most Carried 10 | 6 10 10 10 Average Carried 9 | 1 9 9 9 Final Capacity 10 | 8 10 10 10 Final Carried 10 | 6 10 10 7 Class Distribution -------------------- 53% | Scavenger-Mutant 46% | Mutant Dominant Class ---------------- Mutant | -10/Materials Scavenger-Mutant | -10/Mines Scavenger-Mutant | -10/Subcaves Resources | -11 -10 -10 -10 ----------- Run | Yrd Mat Min Sub Matter Collected 2357 | 253 1035 727 342 Remotely . | . . . . Salvage Created 1851 | 207 936 557 151 Parts 166 | 19 98 36 13 Haulers Intercepted 2 | . 2 . . Recyclers Shooed 1 | . 1 . . Parts Field Recycled . | . . . . Retrieved Matter . | . . . . Parts Self-Destructed 8 | . . . 8 Prevented . | . . . . Kills | -11 -10 -10 -10 ------- Run | Yrd Mat Min Sub Combat Hostiles Destroyed 30 | . 15 7 8 Guns 9 | . 9 . . Cannons 14 | . 4 7 3 AOE 7 | . 2 . 5 Classes Destroyed 10 | 3 6 . 1 Worker 20 | 2 12 6 . Builder 11 | . 10 1 . Tunneler 10 | 5 1 4 . Hauler 2 | . 2 . . Recycler 6 | 1 1 4 . Operator 2 | . 2 . . Watcher 3 | . 3 . . Swarmer 8 | . 3 2 3 Grunt 18 | . 12 6 . Subdweller 5 | . . . 5 Best Kill Streak 9 | 5 9 4 3 Combat Bots Only 5 | . 5 2 3 Max Kills in Single Turn 3 | 1 2 2 3 Gunslinging . | . . . . Exploded 3 | . 1 . 3 Melee . | . . . . Uniques/NPCs Destroyed . | . . . . Combat | -11 -10 -10 -10 -------- Run | Yrd Mat Min Sub Hostile Shots Fired 104 | . 50 24 30 Missed 33 | . 19 4 10 Damage Taken 1335 | . 379 275 681 Core 251 | . 44 36 171 Absorbed by Shields . | . . . . Regen/Repaired (Parts) 6 | . 6 . . Core Remaining (%) 100 | 100 . . . Volleys Fired 217 | 15 115 51 36 Largest 2 | 2 2 2 2 Hottest 100 | 70 85 70 100 Shots Fired 409 | 30 228 98 53 Gun 172 | 30 122 . 20 Cannon 217 | . 99 98 20 Launcher 18 | . 7 . 11 Special 2 | . . . 2 Kinetic 295 | 15 142 98 40 Thermal 96 | 15 79 . 2 Explosive 18 | . 7 . 11 Electromagnetic . | . . . . Robot Hit Streak 22 | 12 12 22 5 Robot Miss Streak 4 | 2 4 4 3 Penetration Max . | . . . . Secondary Targets . | . . . . Shots Hit Robots 224 | 18 126 59 21 Core Hits 114 | 12 62 25 15 Critical Kills . | . . . . Critical Parts Destroyed . | . . . . Critical Strikes 7 | . 4 3 . Burn 1 | . 1 . . Blast 6 | . 3 3 . Melee Attacks . | . . . . Impact . | . . . . Slashing . | . . . . Piercing . | . . . . Sneak Attacks . | . . . . Combat Hostiles . | . . . . Follow-up Attacks . | . . . . Damage Inflicted 4301 | 242 2207 1051 801 Guns 1177 | 242 839 . 96 Cannons 2085 | . 812 1051 222 Explosions 1039 | . 556 . 483 Melee . | . . . . Ramming . | . . . . Kinetic 2472 | 68 1035 1051 318 Thermal 790 | 174 616 . . Explosive 1039 | . 556 . 483 Electromagnetic . | . . . . Impact . | . . . . Slashing . | . . . . Piercing . | . . . . Highest Corruption 2 | . 1 2 2 Average Corruption 1 | . 1 1 1 Corruption Purged 2 | . . . 2 Corruption Blocked . | . . . . Effects 18 | . 7 10 1 Message Errors 6 | . 1 5 . Matter Fused 2 | . 1 1 . Heat Flow Errors 3 | . 2 1 . Energy Discharges 1 | . 1 . . Data Loss (minor) 2 | . 1 . 1 Misfires 2 | . . 2 . Alerts 1 | . 1 . . Weapon Failures 1 | . . 1 . Overload Shots . | . . . . Overflow Damage 38 | . 32 6 . Projectiles 38 | . 32 6 . Explosions . | . . . . Melee . | . . . . Knockbacks 27 | . 6 15 6 Impact . | . . . . Kinetic 27 | . 6 15 6 Secondary . | . . . . Self-Inflicted Damage 44 | . 28 . 16 Shots 2 | . 1 . 1 Rammed . | . . . . Targets Rammed . | . . . . Kicked . | . . . . Crushed . | . . . . Highest Temperature 309 | 100 309 94 . Average Temperature 74 | 42 82 17 . Received Heat Transfer 363 | . 192 120 51 Effects 1 | . 1 . . Interference 1 | . 1 . . Siege Activations . | . . . . Robots Corrupted . | . . . . Combat Hostiles . | . . . . Parts Fried . | . . . . Impact Corruptions . | . . . . Robots Melted . | . . . . Combat Hostiles . | . . . . Parts Melted 1 | . 1 . . Heat Transferred 2405 | 518 1887 . . Parts Sabotaged . | . . . . Parts Stolen . | . . . . Parts Stripped . | . . . . Power Chain Reactions . | . . . . Alert | -11 -10 -10 -10 ------- Run | Yrd Mat Min Sub Peak Influence 403 | 40 398 403 . Initial 129 | . 26 129 . Average 256 | 17 250 289 . Maximum Alert Level 2 | . 1 2 . Low Security (%) 21 | 100 26 7 . Level 1 76 | . 73 88 . Level 2 1 | . . 3 . Level 3 . | . . . . Level 4 . | . . . . Level 5 . | . . . . High Security . | . . . . Max Security . | . . . . Squads Dispatched 3 | . 3 . . Investigation 2 | . 2 . . Extermination . | . . . . Reinforcement 1 | . 1 . . Assault . | . . . . Garrison . | . . . . Intercept . | . . . . Searches Triggered . | . . . . Construction Impeded . | . . . . Haulers Reinforced . | . . . . Active Scanning Responses . | . . . . Cargo Convoy Interrupts . | . . . . Stealth | -11 -10 -10 -10 --------- Run | Yrd Mat Min Sub Distress Signals 2 | . 2 . . Communications Jammed . | . . . . Distress Signals . | . . . . Times Spotted 50 | . 23 13 14 Peak Tracking Total 8 | . 8 3 3 Tactical Retreats 1 | . . 1 . Traps | -11 -10 -10 -10 ------- Run | Yrd Mat Min Sub Traps Triggered 4 | . 1 3 . Indirectly . | . . . . Trap Hack Attempts . | . . . . Triggered . | . . . . Disarmed . | . . . . Reprogrammed . | . . . . Reused . | . . . . Traps Extracted . | . . . . Installed 3 | . . 3 . Triggered . | . . . . Machines | -11 -10 -10 -10 ---------- Run | Yrd Mat Min Sub Machines Disabled 12 | . 6 6 . Max in Single Turn 1 | . 1 1 . Machines Repaired . | . . . . Machines Dismantled . | . . . . Machines Sabotaged . | . . . . Overloaded Fab Kills . | . . . . Hacking | -11 -10 -10 -10 --------- Run | Yrd Mat Min Sub Machines Accessed 10 | . 8 1 1 Terminals 7 | . 7 . . Fabricators . | . . . . Repair Stations 1 | . 1 . . Recycling Units . | . . . . Scanalyzers . | . . . . Garrison Access . | . . . . Total Hacks 27 | . 22 1 4 Successful 13 | . 8 1 4 Failed 13 | . 13 . . Catastrophic 3 | . 3 . . Database Lockouts 1 | . 1 . . Manual 15 | . 14 . 1 Terminals 20 | . 20 . . Fabricators . | . . . . Repair Stations 2 | . 2 . . Recycling Units . | . . . . Scanalyzers . | . . . . Garrison Access . | . . . . Terminal Hacks 11 | . 6 1 4 Record 4 | . . . 4 Robot Analysis 2 | . 2 . . Prototype ID Bank 2 | . 2 . . Open Door 1 | . . 1 . Branch Access Points 1 | . 1 . . Zone Layout 1 | . 1 . . Fabricator Hacks . | . . . . Repair Station Hacks 2 | . 2 . . Scan Component 1 | . 1 . . Repair 1 | . 1 . . Recycling Unit Hacks . | . . . . Scanalyzer . | . . . . Garrison Access Hacks . | . . . . Unauthorized Hacks . | . . . . Terminals . | . . . . Fabricators . | . . . . Repair Stations . | . . . . Recycling Units . | . . . . Scanalyzers . | . . . . Garrison Access . | . . . . Data Cores Recovered . | . . . . Used . | . . . . Hacking Detections 7 | . 7 . . Full Trace Events 4 | . 4 . . Feedback Events 1 | . 1 . . Corruption 1 | . 1 . . Feedback Blocked . | . . . . Robot Schematics Acquired . | . . . . Robots Built . | . . . . Authchips . | . . . . Time . | . . . . Total Robot Build Rating . | . . . . Part Schematics Acquired . | . . . . Parts Built . | . . . . Authchips . | . . . . Time . | . . . . Total Part Build Rating . | . . . . Parts Repaired 1 | . 1 . . Time 38 | . 38 . . Parts Recycled . | . . . . Recycled Matter . | . . . . Retrieved Matter . | . . . . Retrieved Components . | . . . . Parts Scanalyzed . | . . . . Part Schematics Acquired . | . . . . Parts Damaged . | . . . . Bothacking | -11 -10 -10 -10 ------------ Run | Yrd Mat Min Sub Used RIF Installer . | . . . . Robots Hacked . | . . . . Non-combat . | . . . . Combat . | . . . . Robot Hacks Applied . | . . . . Relay Couplers Released . | . . . . Fabnet Peak Effective % . | . . . . Robots Rewired . | . . . . Allies Hacked . | . . . . Hacks Repelled . | . . . . Allies | -11 -10 -10 -10 -------- Run | Yrd Mat Min Sub Total Allies 6 | . . 6 . Largest Group 4 | . . 4 3 Highest-Rated Group 90 | . . 90 74 Highest-Rated Ally 31 | . . 31 31 Total Orders . | . . . . Ally Attacks 56 | . . 31 25 Total Damage 827 | . . 449 378 Kills 10 | . . 5 5 Allies Corrupted . | . . . . Allies Melted . | . . . . Intel | -11 -10 -10 -10 ------- Run | Yrd Mat Min Sub Robot Analysis Total 2 | . 2 . . Derelict Logs Recovered 4 | . . 3 1 Drone Launches . | . . . . Drone Recoveries . | . . . . Exploration | -11 -10 -10 -10 ------------- Run | Yrd Mat Min Sub Turns Passed 3884 | 123 1128 1051 1582 Spaces Moved 3375 | 73 899 951 1452 Core 56 | 1 . . 55 Treads . | . . . . Legs . | . . . . Wheels 3319 | 72 899 951 1397 Hover . | . . . . Flight . | . . . . Fastest Speed 50 | 50 80 80 80 Average Speed 83 | 85 80 80 86 Slowest Speed 200 | 100 80 95 200 Overloaded Moves . | . . . . Propulsion Burnouts . | . . . . Robots Hopped . | . . . . Cave-ins Triggered . | . . . . Exploration Rate (%) 66 | 3 95 97 70 Regions Visited 3 Branch Regions 2 Pre-discovered Areas 3 | . . 1 2 Known Exits Taken 1 | . 1 . . Unknown Exits Taken 2 | 1 . 1 . Scrap Searched 6 | . . 2 4 Spaces Dug . | . . . . Terrain Destroyed 85 | . 34 . 51 Melee . | . . . . Projectile . | . . . . AOE 85 | . 34 . 51 Terrain Rammed . | . . . . Walls Destroyed . | . . . . Machines Disabled . | . . . . Actions | -11 -10 -10 -10 --------- Run | Yrd Mat Min Sub Total 4072 | 102 1091 1148 1731 Wait 305 | . 24 87 194 Move 3372 | 72 898 950 1452 Hop . | . . . . Pick Up 46 | 6 15 18 7 Fast Attach 20 | 7 4 2 7 Attach 12 | . 1 6 5 Detach 4 | . 2 . 2 Swap 37 | 1 13 13 10 Drop 56 | 1 19 18 18 Fire 217 | 15 115 51 36 Melee . | . . . . Ram . | . . . . Kick . | . . . . Crush . | . . . . Escape Stasis . | . . . . Rewire . | . . . . Trap 3 | . . 3 . Miscellaneous . | . . . . Route ------- -11/Scrapyard -10/Materials (discovered 4 exits: [*Mat x2] / *Min x2) -10/Mines (discovered 3 exits: [*Mat x2] / *Sub) -10/Subcaves (discovered 2 exits: [*Mat x2]) History --------- Turn | Location | Event 13 | -11/Scrapyard | Discovered new exit (range 16) 124 | -11/Scrapyard | Entered Materials 151 | -10/Materials | Discovered new exit (range 15) 292 | -10/Materials | Discovered new exit (range 15) 342 | -10/Materials | Build established: Mutant 531 | -10/Materials | Discovered new exit (range 8) 574 | -10/Materials | Repaired Imp. Terrain Scanner? 723 | -10/Materials | Identified exit to Mines 1029 | -10/Materials | Discovered new exit (range 4) 1118 | -10/Materials | Central database locked down 1252 | -10/Materials | Entered Mines 1319 | -10/Mines | Assisted by bots powering up and referring to "LRC-V3" 1350 | -10/Mines | Found a hidden stash of uninstalled traps 1441 | -10/Mines | Learned Materials stockpile data 1442 | -10/Mines | Learned location of Mines (-8) 1460 | -10/Mines | Met a Derelict who couldn't figure out how to use a Trap Extractor 1580 | -10/Mines | Learned Materials emergency access door positions 1646 | -10/Mines | Build established: Scavenger-Mutant 1726 | -10/Mines | Escorted by a lone wolf Derelict 2004 | -10/Mines | Discovered new exit (range 7) 2049 | -10/Mines | Discovered new exit (range 5) 2194 | -10/Mines | Found a damaged Exp. Sensor Array with a note attached 2199 | -10/Mines | Found Prototype Device 2225 | -10/Mines | Discovered new exit (range 11) 2303 | -10/Mines | Entered Subcaves 2303 | -10/Subcaves | Accompanied by 3 allies 2308 | -10/Subcaves | Led the pair of lost Derelicts to an unsafe place 2376 | -10/Subcaves | Discovered new exit (range 14) 2404 | -10/Subcaves | Ambushed by Subdwellers from Twisted Machinery 2676 | -10/Subcaves | Discovered new exit (range 6) 2753 | -10/Subcaves | Learned location of Zion (-7) 2753 | -10/Subcaves | Met a Zionite searching for "candidates" 2762 | -10/Subcaves | Shifting Twisted Machinery released Sub. Machine Gun 2817 | -10/Subcaves | Shifting Twisted Machinery released Sub. Machine Gun 3022 | -10/Subcaves | Shifting Twisted Machinery released Multitool 3079 | -10/Subcaves | Visited Clippyterm 3082 | -10/Subcaves | Learned Factory garrison access intel 3156 | -10/Subcaves | Shifting Twisted Machinery released Mak. Light Armor Plating 3519 | -10/Subcaves | Build established: Mutant 3718 | -10/Subcaves | A swath of the cavern ceiling suddenly collapsed 3739 | -10/Subcaves | Shifting Twisted Machinery released Sub. Beam Cannon 3741 | -10/Subcaves | Shifting Twisted Machinery released Sub. Laser 3743 | -10/Subcaves | Core integrity fell below 50% 3752 | -10/Subcaves | Core integrity fell below 20% 3795 | -10/Subcaves | Lost 8 parts (4n1u3w) 3885 | -10/Subcaves | Destroyed self with Grenade Launcher Last Messages --------------- 03501_ 2C-NFJ(O) collects matter. 03556_ Acquired derelict log, extracted data. World map confirmed: -7/Zion. 03583_ Subatomizers dissect the Med. Storage Unit. 03583_ Acquired 5 matter. A swath of the cavern ceiling suddenly collapses. Sub. Beam Cannon falls loose from the Twisted Machinery. Sub. Laser falls loose from the Twisted Machinery. 03745_ Sub. Machine Gun destroyed. 03747_ WZ-O6N(g): "Mission, incomplete...*fzzt*" 03747_ WZ-O6N(g) destroyed. 03749_ Wheel destroyed. 03753_ Sub. Machine Gun destroyed. 03762_ Wheel destroyed. 03764_ Imp. Heat Sink destroyed. 03770_ Destroyed Scrap Shield. 03770_ UI-F0I(R) destroyed. 03780_ The unstable cave ceiling collapses. 03797_ Acquired Sub. Shrapnel Launcher. 03800_ Acquired 33 matter. Map ----- +----------------------------------------------------+ | ?????????????????????????????????????????????????? | | ?????????????????????????????????????????????????? | | ?????????????????????????????????????????????????? | | ?????????????????????????????????????????????????? | | ??#??????????????????????????????????????????????? | | ##?????????????????????????????????????????????? | | #?????????????????????????????????????????????? | | #????????????????????????????????????????????? | | ? #????????????????????????????????????????????? | | ??? ??????????????????????????????????????????? | | ????? ???????????????????????????????????????? | | ??????? ##???????#???????##?????????????????????? | | ?????????#???????## ???### #?????????????????????? | | ?????????????????# ??? #??## ?????????????? | | ??????????##????## ??? ### ?????????????? | | ??????????# #?### ??# ?????????????? | | ??????????# ## #?# #??????????????? | | ?????# ?## ## #? #??# ??????????? | | ????? ## #; #?? ## ??????????? | | ?????# #??# ?????????? | | ?????# #### ?????????? | | ??????### #?# ## #?????????? | | ????? "" ### #??????????? | | "????"" #???????????? | | "????"" #????????????? | | ??? ### ## @ O #?????????????? | | ????????????## ### ##?????????????? | | ?????????????# #?# ##??????????????? | | ????????????##" ### ## ##???????????????? | | ??????###???# " ## ###?? #???????????????? | | ?????## ##??# " # ## #?????????????????????? | | ???### ##?##" # ##" ##?????????????????????? | | #### * #### #### ####RR#??????????????????????? | | ##"&! # #???##??#"""#?????????????????????? | | "" ## ##???????#"""" ????????????????????? | | #######????????#"""" ???????????????????? | | " #?????????????? "" ???????????????????? | | ""#????????????? ???????????????????????? | | ##????????????? ???????????????????????? | | ##????????????????????????????????????????? | | ###?????????????????????????????????????????? | | ##???????????????????????????????????????????? | | #####????????????????????????????????????????????? | | ?????????????????????????????????????????????????? | | ?????????????????????????????????????????????????? | | ?????????????????????????????????????????????????? | | ?????????????????????????????????????????????????? | | ?????????????????????????????????????????????????? | | ?????????????????????????????????????????????????? | | ?????????????????????????????????????????????????? | +----------------------------------------------------+ Best States ------------- Heat Dissipation 39 Energy Generation 10 Energy Capacity 250 Matter Stores 300 Matter Capacity 300 Sight Range 16 Terrain Scan Range 16 Terrain Scan Density 10 Evasion (%) 44 Item Schematics ----------------- None Robot Schematics ------------------ None Fabricated ------------ Nothing Alien Tech Used ----------------- None Achievements -------------- None Challenges ------------ None Game ------ Seed PiercingVortexFemtoactuators Manual? 0 Play Time 00:40:26 Cumulative 417.1 hours Start 2024.06.08 @ 15:27:58 End 2024.06.08 @ 18:06:31 Sessions 1 Manual Loads 0 Difficulty Rogue Special Mode None Game No. 147 Rogue 147 Adventurer 0 Explorer 0 Win Type - Total 3 Types 0/0/2/1/0/0/0/0/0 Lore% 70 Gallery% 79 Achievement% 63 Wizard Run 0 Options --------- Layout 0 ASCII 0 Keyboard 1 Movement Arrows Keybinds 0 Fullscreen 1 Font 12/Proggy Map View 83x54 Zoom Use 0% Tactical HUD 1 Map Filters NONE Filters NONE Steam 0 RUN: 5fce2ab6-5d68-4bb4-a6a9-2388f2ef9b2d